fUST/lending_fUST_20250730
["ID","MTS","AMOUNT","RATE_DAILY","PERIOD"]
[376029940,1753830635116,-500.0,0.00018891,2]
[376029941,1753830635125,-460.0,0.00018891,2]
[376029942,1753830635135,-151.0,0.00018891,2]
[376029943,1753830635144,-155.90040811,0.00018891,2]
[376029944,1753830635155,-200.91677972,0.00018891,2]
[376029945,1753830635164,-500.0,0.00018891,2]
[376029946,1753830635174,-1383.34,0.00018891,2]
[376029947,1753830635184,-460.0,0.00018891,2]
[376029948,1753830635195,-151.41282193,0.00018891,2]
[376029949,1753830635208,-460.0,0.00018891,2]
[376029950,1753830635218,-151.0,0.00018891,2]
[376029951,1753830635229,-151.81329179,0.00018891,2]
[376029952,1753830635238,-151.0,0.00018891,2]
[376029953,1753830635248,-460.0,0.00018891,2]
[376029954,1753830635257,-460.0,0.00018891,2]
[376029955,1753830635267,-460.0,0.00018891,2]
[376029956,1753830635276,-151.23971539,0.00018891,2]
[376029957,1753830635290,-52.09712697,0.00018891,2]
[376029958,1753830635300,-500.0,0.00018891,2]
[376029959,1753830635309,-460.0,0.00018891,2]
[376029960,1753830635319,-156.2251918,0.00018891,2]
[376029961,1753830635329,-460.0,0.00018891,2]
[376029962,1753830635338,-500.0,0.00018891,2]
[376029963,1753830635347,-460.0,0.00018891,2]
[376029964,1753830635357,-460.0,0.00018891,2]
[376029965,1753830635366,-466.40297629,0.00018891,2]
[376029966,1753830635376,-460.0,0.00018891,2]
[376029967,1753830635386,-460.0,0.00018891,2]
[376029968,1753830635395,-460.0,0.00018891,2]
[376029969,1753830635404,-586.86,0.00018891,2]
[376029970,1753830635414,-474.12128721,0.00018892,2]
[376029971,1753830635424,-283.88172561,0.00018892,2]
[376029972,1753830635437,-217.96856353,0.00018892,2]
[376029973,1753830635453,-460.0,0.00018892,2]
[376029974,1753830635462,-462.00365027,0.00018892,2]
[376029975,1753830635473,-460.0,0.00018892,2]
[376029976,1753830635483,-460.0,0.00018892,2]
[376029977,1753830635493,-2890.17,0.00018892,2]
[376029978,1753830635502,-460.0,0.00018892,2]
[376029979,1753830635512,-460.0,0.00018892,2]
[376029980,1753830635521,-460.0,0.00018892,2]
[376029981,1753830635531,-460.0,0.00018892,2]
[376029982,1753830635540,-460.0,0.00018892,2]
[376029983,1753830635549,-460.0,0.00018892,2]
[376029984,1753830635559,-460.0,0.00018892,2]
[376029985,1753830635569,-460.0,0.00018892,2]
[376029986,1753830635578,-578.5,0.00018892,2]
[376029987,1753830635588,-1401.72,0.00018892,2]
[376029988,1753830635597,-460.0,0.00018892,2]
[376029989,1753830635607,-460.0,0.00018892,2]
[376029990,1753830635617,-460.0,0.00018892,2]
[376029991,1753830635627,-460.0,0.00018892,2]
[376029992,1753830635637,-460.0,0.00018892,2]
[376029993,1753830635646,-500.0,0.00018892,2]
[376029994,1753830635656,-151.44368403,0.00018892,2]
[376029995,1753830635666,-531.28,0.00018892,2]
[376029996,1753830635676,-460.0,0.00018892,2]
[376029997,1753830635685,-500.0,0.00018892,2]
[376029998,1753830635695,-500.0,0.00018892,2]
[376029999,1753830635704,-500.0,0.00018892,2]
[376030000,1753830635713,-460.0,0.00018892,2]
[376030001,1753830635724,-500.0,0.00018892,2]
[376030002,1753830635733,-255.55352173,0.00018892,2]
[376030003,1753830635743,-500.0,0.00018892,2]
[376030004,1753830635752,-460.0,0.00018892,2]
[376030005,1753830635761,-528.46,0.00018892,2]
[376030006,1753830635771,-867.43,0.00018892,2]
[376030007,1753830635780,-1182.14,0.00018892,2]
[376030008,1753830635790,-515.85,0.00018892,2]
[376030009,1753830635799,-460.0,0.00018892,2]
[376030010,1753830635809,-460.0,0.00018892,2]
[376030011,1753830635820,-460.0,0.00018892,2]
[376030012,1753830635830,-460.0,0.00018892,2]
[376030013,1753830635839,-460.0,0.00018892,2]
[376030014,1753830635848,-268.03,0.00018892,2]
[376030015,1753830635858,-460.0,0.00018892,2]
[376030016,1753830635867,-460.0,0.00018892,2]
[376030017,1753830635877,-460.0,0.00018892,2]
[376030018,1753830635887,-460.0,0.00018892,2]
[376030019,1753830635896,-460.0,0.00018892,2]
[376030020,1753830635905,-460.0,0.00018892,2]
[376030021,1753830635914,-500.0,0.00018893,2]
[376030022,1753830635924,-181.28992782,0.00018893,2]
[376030023,1753830635933,-460.0,0.00018893,2]
[376030024,1753830635943,-460.0,0.00018893,2]
[376030025,1753830635952,-460.0,0.00018893,2]
[376030026,1753830635961,-460.0,0.00018893,2]
[376030027,1753830635971,-460.0,0.00018893,2]
[376030028,1753830635981,-460.0,0.00018893,2]
[376030029,1753830635990,-460.0,0.00018893,2]
[376030030,1753830636000,-460.0,0.00018893,2]
[376030031,1753830636009,-460.0,0.00018893,2]
[376030032,1753830636020,-460.0,0.00018893,2]
[376030033,1753830636029,-460.0,0.00018893,2]
[376030034,1753830636038,-460.0,0.00018893,2]
[376030035,1753830636047,-460.0,0.00018893,2]
[376030036,1753830636057,-460.0,0.00018893,2]
[376030037,1753830636066,-460.0,0.00018893,2]
[376030038,1753830636076,-460.0,0.00018893,2]
[376030039,1753830636086,-460.0,0.00018893,2]
[376030040,1753830636096,-460.0,0.00018893,2]
[376030041,1753830636105,-500.0,0.00018893,2]
[376030042,1753830636115,-460.0,0.00018893,2]
[376030043,1753830636124,-460.0,0.00018893,2]
[376030044,1753830636134,-873.33,0.00018894,2]
[376030045,1753830636144,-953.77,0.00018894,2]
[376030046,1753830636155,-460.0,0.00018896,2]
[376030047,1753830636165,-656.79,0.00018896,2]
[376030048,1753830636175,-3792.24,0.00018896,2]
[376030049,1753830636185,-460.0,0.00018896,2]
[376030050,1753830636198,-1554.59,0.00018896,2]
[376030051,1753830636208,-1233.0,0.00018896,2]
[376030052,1753830636218,-460.0,0.00018896,2]
[376030053,1753830636229,-460.0,0.00018896,2]
[376030054,1753830636239,-242.00508589,0.000189,2]
[376030055,1753830636248,-302.57643837,0.000189,2]
[376030056,1753830636257,-858.34284344,0.00019066,2]
[376030057,1753830636268,-302.57643837,0.00019089,2]
[376030058,1753830636278,-500.0,0.00019164,2]
[376030059,1753830636288,-584.09069785,0.00019164,2]
[376030060,1753830636297,-460.0,0.00019164,2]
[376030061,1753830636307,-460.0,0.00019164,2]
[376030062,1753830636316,-460.0,0.00019164,2]
[376030063,1753830636325,-474.83873854,0.00019164,2]
[376030064,1753830636335,-460.0,0.00019164,2]
[376030065,1753830636344,-1602.79,0.00019164,2]
[376030066,1753830636353,-460.0,0.00019164,2]
[376030067,1753830636362,-460.0,0.00019164,2]
[376030068,1753830636372,-1560.51,0.00019164,2]
[376030069,1753830636381,-460.0,0.00019164,2]
[376030070,1753830636390,-460.0,0.00019164,2]
[376030071,1753830636400,-939.9,0.00019164,2]
[376030072,1753830636409,-460.0,0.00019164,2]
[376030073,1753830636418,-460.0,0.00019164,2]
[376030074,1753830636428,-1144.23,0.00019164,2]
[376030075,1753830636438,-460.0,0.00019164,2]
[376030076,1753830636447,-460.0,0.00019164,2]
[376030077,1753830636457,-326.23471881,0.00019164,2]
[376030078,1753830636466,-460.0,0.00019164,2]
[376030079,1753830636477,-460.0,0.00019164,2]
[376030080,1753830636486,-151.0,0.00019165,2]
[376030081,1753830636496,-151.0,0.00019165,2]
[376030082,1753830636505,-151.0,0.00019165,2]
[376030083,1753830636514,-151.0,0.00019165,2]
[376030084,1753830636524,-586.69002538,0.00019165,2]
[376030085,1753830636534,-151.0,0.00019165,2]
[376030086,1753830636543,-152.24199506,0.00019165,2]
[376030087,1753830636553,-151.0,0.00019165,2]
[376030088,1753830636563,-151.0,0.00019165,2]
[376030089,1753830636573,-992.0,0.00019165,2]
[376030090,1753830636584,-500.0,0.00019165,2]
[376030091,1753830636595,-151.0,0.00019165,2]
[376030092,1753830636604,-500.0,0.00019165,2]
[376030093,1753830636613,-570.2975092,0.00019165,2]
[376030094,1753830636623,-500.0,0.00019165,2]
[376030095,1753830636633,-460.0,0.00019165,2]
[376030096,1753830636644,-460.0,0.00019165,2]
[376030097,1753830636656,-391.78928493,0.00019165,2]
[376030098,1753830636667,-525.71769394,0.00019165,2]
[376030099,1753830636677,-460.0,0.00019165,2]
[376030100,1753830636688,-411.8078171,0.00019165,2]
[376030101,1753830636699,-460.0,0.00019165,2]
[376030102,1753830636709,-460.0,0.00019165,2]
[376030103,1753830636718,-460.0,0.00019165,2]
[376030104,1753830636729,-460.0,0.00019165,2]
[376030105,1753830636738,-460.0,0.00019165,2]
[376030106,1753830636748,-460.0,0.00019165,2]
[376030107,1753830636757,-460.0,0.00019165,2]
[376030108,1753830636767,-460.0,0.00019165,2]
[376030109,1753830636776,-178.59315011,0.00019165,2]
[376030110,1753830636785,-460.0,0.00019165,2]
[376030111,1753830636794,-460.0,0.00019165,2]
[376030112,1753830636803,-460.0,0.00019165,2]
[376030113,1753830636813,-460.0,0.00019165,2]
[376030114,1753830636823,-460.0,0.00019165,2]
[376030115,1753830636832,-460.0,0.00019165,2]
[376030116,1753830636841,-460.0,0.00019165,2]
[376030117,1753830636851,-460.0,0.00019165,2]
[376030118,1753830636860,-460.0,0.00019165,2]
[376030119,1753830636869,-460.0,0.00019165,2]
[376030120,1753830636878,-460.0,0.00019165,2]
[376030121,1753830636887,-460.0,0.00019165,2]
[376030122,1753830636896,-460.0,0.00019165,2]
[376030123,1753830636906,-460.0,0.00019165,2]
[376030124,1753830636915,-460.0,0.00019165,2]
[376030125,1753830636924,-460.0,0.00019165,2]
[376030126,1753830636934,-460.0,0.00019165,2]
[376030127,1753830636943,-460.0,0.00019165,2]
[376030128,1753830636952,-460.0,0.00019165,2]
[376030129,1753830636961,-720.54,0.00019165,2]
[376030130,1753830636972,-460.0,0.00019165,2]
[376030131,1753830636982,-460.0,0.00019165,2]
[376030132,1753830636991,-460.0,0.00019165,2]
[376030133,1753830637000,-460.0,0.00019165,2]
[376030134,1753830637010,-493.75373831,0.00019165,2]
[376030135,1753830637134,-460.0,0.00019165,2]
[376030136,1753830637145,-460.0,0.00019165,2]
[376030137,1753830637155,-542.63967015,0.00019165,2]
[376030138,1753830637164,-299.61,0.00019165,2]
[376030139,1753830637175,-460.0,0.00019165,2]
[376030140,1753830637184,-460.0,0.00019165,2]
[376030141,1753830637196,-460.0,0.00019165,2]
[376030142,1753830637208,-460.0,0.00019165,2]
[376030143,1753830637218,-460.0,0.00019165,2]
[376030144,1753830637229,-460.0,0.00019165,2]
[376030145,1753830637238,-460.0,0.00019165,2]
[376030146,1753830637249,-460.0,0.00019165,2]
[376030147,1753830637259,-460.0,0.00019165,2]
[376030148,1753830637268,-460.0,0.00019165,2]
[376030149,1753830637280,-460.0,0.00019165,2]
[376030150,1753830637289,-460.0,0.00019165,2]
[376030151,1753830637299,-460.0,0.00019165,2]
[376030152,1753830637309,-460.0,0.00019165,2]
[376030153,1753830637319,-460.0,0.00019165,2]
[376030154,1753830637329,-460.0,0.00019165,2]
[376030155,1753830637339,-460.0,0.00019165,2]
[376030156,1753830637348,-591.53504124,0.00019165,2]
[376030157,1753830637358,-460.0,0.00019165,2]
[376030158,1753830637368,-460.0,0.00019165,2]
[376030159,1753830637378,-460.0,0.00019165,2]
[376030160,1753830637388,-460.0,0.00019165,2]
[376030161,1753830637398,-484.1,0.00019165,2]
[376030162,1753830637408,-460.0,0.00019165,2]
[376030163,1753830637418,-460.0,0.00019165,2]
[376030164,1753830637427,-1383.34,0.00019165,2]
[376030165,1753830637437,-460.0,0.00019165,2]
[376030166,1753830637446,-460.0,0.00019165,2]
[376030167,1753830637455,-460.0,0.00019165,2]
[376030168,1753830637465,-460.0,0.00019165,2]
[376030169,1753830637475,-460.0,0.00019165,2]
[376030170,1753830637484,-460.0,0.00019165,2]
[376030171,1753830637493,-460.0,0.00019165,2]
[376030172,1753830637503,-460.0,0.00019165,2]
[376030173,1753830637512,-586.86,0.00019165,2]
[376030174,1753830637522,-500.0,0.00019166,2]
[376030175,1753830637531,-500.0,0.00019166,2]
[376030176,1753830637540,-2890.17,0.00019166,2]
[376030177,1753830637550,-460.0,0.00019166,2]
[376030178,1753830637560,-460.0,0.00019166,2]
[376030179,1753830637569,-460.0,0.00019166,2]
[376030180,1753830637579,-460.0,0.00019166,2]
[376030181,1753830637589,-460.0,0.00019166,2]
[376030182,1753830637598,-578.5,0.00019166,2]
[376030183,1753830637608,-1401.72,0.00019166,2]
[376030184,1753830637617,-460.0,0.00019166,2]
[376030185,1753830637627,-460.0,0.00019166,2]
[376030186,1753830637636,-460.0,0.00019166,2]
[376030187,1753830637646,-460.0,0.00019166,2]
[376030188,1753830637656,-531.28,0.00019166,2]
[376030189,1753830637666,-366.07535684,0.00019166,2]
[376030190,1753830637676,-500.0,0.00019166,2]
[376030191,1753830637686,-460.0,0.00019166,2]
[376030192,1753830637695,-528.46,0.00019166,2]
[376030193,1753830637705,-867.43,0.00019166,2]
[376030194,1753830637715,-1182.14,0.00019166,2]
[376030195,1753830637726,-515.85,0.00019166,2]
[376030196,1753830637735,-460.0,0.00019166,2]
[376030197,1753830637744,-460.0,0.00019166,2]
[376030198,1753830637754,-460.0,0.00019167,2]
[376030200,1753830637763,-460.0,0.00019167,2]
[376030201,1753830637772,-386.24550438,0.00019167,2]
[376030202,1753830637782,-460.0,0.00019167,2]
[376030203,1753830637791,-460.0,0.00019167,2]
[376030204,1753830637801,-460.0,0.00019167,2]
[376030205,1753830637810,-873.33,0.00019168,2]
[376030206,1753830637819,-953.77,0.00019168,2]
[376030207,1753830637829,-656.79,0.0001917,2]
[376030208,1753830637839,-3792.24,0.0001917,2]
[376030209,1753830637848,-460.0,0.0001917,2]
[376030210,1753830637858,-1554.59,0.0001917,2]
[376030211,1753830637867,-1233.0,0.0001917,2]
[376030212,1753830637876,-460.0,0.0001917,2]
[376030214,1753830637885,-231.05746139,0.00019178,2]
[376030216,1753830637895,-312.668531,0.00019178,2]
[376030218,1753830637905,-200.0,0.00019267,15]
[376030220,1753830637914,-200.0,0.00019267,15]
[376030221,1753830637923,-200.0,0.00019267,15]
[376030222,1753830637932,-200.0,0.00019267,15]
[376030223,1753830637942,-2026.76202557,0.00019271,2]
[376030224,1753830637951,-302.93913116,0.00019278,2]
[376030225,1753830637959,-3426.2966346,0.00019338,2]
[376030226,1753830637969,-190.02599813,0.00019339,2]
[376030227,1753830637980,-17889.10463817,0.0001934,2]
[376030228,1753830637989,-540.31139142,0.00019438,2]
[376030229,1753830637999,-460.0,0.00019438,2]
[376030230,1753830638008,-1602.79,0.00019438,2]
[376030231,1753830638018,-460.0,0.00019438,2]
[376030232,1753830638028,-1560.51,0.00019438,2]
[376030233,1753830638037,-565.72,0.00019438,2]
[376030234,1753830638047,-939.9,0.00019438,2]
[376030235,1753830638057,-460.0,0.00019438,2]
[376030236,1753830638067,-460.0,0.00019438,2]
[376030237,1753830638076,-1144.23,0.00019438,2]
[376030238,1753830638085,-460.0,0.00019438,2]
[376030239,1753830638095,-460.0,0.00019438,2]
[376030240,1753830638105,-460.0,0.00019438,2]
[376030241,1753830638114,-151.0,0.00019439,2]
[376030242,1753830638124,-151.0,0.00019439,2]
[376030243,1753830638133,-151.0,0.00019439,2]
[376030244,1753830638143,-151.0,0.00019439,2]
[376030245,1753830638153,-202.62508502,0.00019439,2]
[376030246,1753830638163,-151.0,0.00019439,2]
[376030247,1753830638172,-222.4003897,0.00019439,2]
[376030248,1753830638182,-700.85987739,0.00019439,2]
[376030265,1753830638713,-460.0,0.0001889,2]
[376030266,1753830638723,-460.0,0.00018891,2]
[376030267,1753830638732,-311.34149636,0.00019337,2]
[376030268,1753830638741,-500.0,0.00019337,2]
[376030269,1753830638750,-500.0,0.00019337,2]
[376030270,1753830638760,-601.30163582,0.00019337,2]
[376030271,1753830638769,-580.46825029,0.00019337,2]
[376030272,1753830638778,-500.0,0.00019337,2]
[376030273,1753830638788,-179.69528467,0.00019337,2]
[376030274,1753830638797,-500.0,0.00019337,2]
[376030275,1753830638806,-500.0,0.00019337,2]
[376030276,1753830638815,-455.79014635,0.00019337,2]
[376030277,1753830638839,-44.20985365,0.00019337,2]
[376030278,1753830638849,-500.0,0.00019337,2]
[376030279,1753830638858,-500.0,0.00019337,2]
[376030280,1753830638867,-500.0,0.00019337,2]
[376030281,1753830638876,-500.0,0.00019337,2]
[376030282,1753830638886,-500.0,0.00019337,2]
[376030283,1753830638895,-500.0,0.00019337,2]
[376030284,1753830638904,-500.0,0.00019337,2]
[376030285,1753830638914,-500.0,0.00019337,2]
[376030286,1753830638923,-500.0,0.00019337,2]
[376030287,1753830638932,-500.0,0.00019337,2]
[376030288,1753830638941,-500.0,0.00019337,2]
[376030289,1753830638951,-578.06496138,0.00019337,2]
[376030290,1753830638960,-291.14012261,0.00019439,2]
[376030291,1753830638969,-453.0,0.00019439,2]
[376030292,1753830638984,-151.0,0.00019439,2]
[376030293,1753830638993,-453.0,0.00019439,2]
[376030294,1753830639002,-500.0,0.00019439,2]
[376030295,1753830639012,-460.0,0.00019439,2]
[376030296,1753830639021,-336.73317175,0.00019439,2]
[376030297,1753830639032,-123.26682825,0.00019439,2]
[376030298,1753830639042,-460.0,0.00019439,2]
[376030299,1753830639051,-311.98122836,0.00019439,2]
[376030300,1753830639062,-148.01877164,0.00019439,2]
[376030301,1753830639072,-460.0,0.00019439,2]
[376030302,1753830639081,-226.44,0.00019439,2]
[376030303,1753830639090,-460.0,0.00019439,2]
[376030304,1753830639100,-460.0,0.00019439,2]
[376030305,1753830639109,-465.41742292,0.00019439,2]
[376030306,1753830639119,-460.0,0.00019439,2]
[376030307,1753830639128,-460.0,0.00019439,2]
[376030308,1753830639137,-460.0,0.00019439,2]
[376030309,1753830639147,-460.0,0.00019439,2]
[376030310,1753830639157,-460.0,0.00019439,2]
[376030311,1753830639167,-720.54,0.00019439,2]
[376030312,1753830639176,-460.0,0.00019439,2]
[376030313,1753830639185,-460.0,0.00019439,2]
[376030314,1753830639194,-460.0,0.00019439,2]
[376030315,1753830639207,-460.0,0.00019439,2]
[376030316,1753830639217,-460.0,0.00019439,2]
[376030317,1753830639227,-460.0,0.00019439,2]
[376030318,1753830639237,-460.0,0.00019439,2]
[376030319,1753830639247,-460.0,0.00019439,2]
[376030320,1753830639256,-460.0,0.00019439,2]
[376030321,1753830639265,-460.0,0.00019439,2]
[376030322,1753830639275,-460.0,0.00019439,2]
[376030323,1753830639286,-460.0,0.00019439,2]
[376030324,1753830639296,-598.01864906,0.00019439,2]
[376030325,1753830639306,-460.0,0.00019439,2]
[376030326,1753830639315,-460.0,0.00019439,2]
[376030327,1753830639324,-286.89,0.00019439,2]
[376030328,1753830639333,-484.1,0.00019439,2]
[376030329,1753830639343,-460.0,0.00019439,2]
[376030330,1753830639352,-460.0,0.00019439,2]
[376030331,1753830639362,-1383.34,0.00019439,2]
[376030332,1753830639372,-460.0,0.00019439,2]
[376030333,1753830639381,-460.0,0.00019439,2]
[376030334,1753830639391,-460.0,0.00019439,2]
[376030335,1753830639400,-460.0,0.00019439,2]
[376030336,1753830639409,-586.86,0.00019439,2]
[376030337,1753830639419,-500.0,0.0001944,2]
[376030338,1753830639428,-500.0,0.0001944,2]
[376030339,1753830639437,-2890.17,0.0001944,2]
[376030340,1753830639447,-283.1817611,0.0001944,2]
[376030341,1753830639456,-460.0,0.0001944,2]
[376030342,1753830639465,-578.5,0.0001944,2]
[376030343,1753830639475,-1401.72,0.0001944,2]
[376030344,1753830639485,-460.0,0.0001944,2]
[376030345,1753830639494,-531.28,0.0001944,2]
[376030346,1753830639503,-528.46,0.0001944,2]
[376030347,1753830639513,-203.2618979,0.0001944,2]
[376030348,1753830639526,-664.1681021,0.0001944,2]
[376030349,1753830639536,-879.5238975,0.0001944,2]
[376030381,1753830640110,-302.6161025,0.0001944,2]
[376030383,1753830640120,-515.85,0.0001944,2]
[376030385,1753830640130,-460.0,0.0001944,2]
[376030387,1753830640139,-460.0,0.0001944,2]
[376030389,1753830640149,-460.0,0.00019441,2]
[376030391,1753830640158,-873.33,0.00019442,2]
[376030393,1753830640168,-953.77,0.00019442,2]
[376030395,1753830640178,-656.79,0.00019444,2]
[376030397,1753830640187,-3792.24,0.00019444,2]
[376030399,1753830640197,-460.0,0.00019444,2]
[376030401,1753830640211,-1554.59,0.00019444,2]
[376030403,1753830640220,-1233.0,0.00019444,2]
[376030405,1753830640231,-460.0,0.00019444,2]
[376030407,1753830640240,-500.0,0.00019475,2]
[376030409,1753830640251,-503.14242823,0.000195,2]
[376030411,1753830640260,-160.0,0.00019525,2]
[376030413,1753830640269,-216.1031716,0.00019525,2]
[376030415,1753830640278,-526.67226028,0.00019525,2]
[376030417,1753830640288,-160.0,0.00019525,2]
[376030419,1753830640297,-214.91980558,0.00019525,2]
[376030421,1753830640307,-160.0,0.00019525,2]
[376030422,1753830640316,-12637.12721421,0.00019525,2]
[376030423,1753830640326,-841.06558547,0.00019525,2]
[376030433,1753830640335,-231.39372452,0.00019525,2]
[376030435,1753830640458,-460.0,0.00019712,2]
[376030437,1753830640468,-460.0,0.00019712,2]
[376030439,1753830640478,-1560.51,0.00019712,2]
[376030441,1753830640488,-939.9,0.00019712,2]
[376030443,1753830640498,-270.32,0.00019712,2]
[376030445,1753830640507,-414.26,0.00019712,2]
[376030447,1753830640516,-1144.23,0.00019712,2]
[376030449,1753830640525,-460.0,0.00019712,2]
[376030451,1753830640535,-460.0,0.00019712,2]
[376030453,1753830640545,-460.0,0.00019712,2]
[376030455,1753830640554,-151.0,0.00019713,2]
[376030457,1753830640563,-291.77218785,0.00019713,2]
[376030459,1753830640572,-203.17881933,0.00019713,2]
[376030461,1753830640582,-992.0,0.00019713,2]
[376030463,1753830640592,-500.0,0.00019713,2]
[376030465,1753830640601,-460.0,0.00019713,2]
[376030467,1753830640611,-460.0,0.00019713,2]
[376030469,1753830640619,-460.0,0.00019713,2]
[376030471,1753830640628,-460.0,0.00019713,2]
[376030473,1753830640638,-460.0,0.00019713,2]
[376030475,1753830640647,-460.0,0.00019713,2]
[376030477,1753830640658,-460.0,0.00019713,2]
[376030479,1753830640667,-720.54,0.00019713,2]
[376030481,1753830640677,-527.94,0.00019713,2]
[376030483,1753830640687,-191.28992809,0.00019713,2]
[376030485,1753830640696,-460.0,0.00019713,2]
[376030487,1753830640705,-460.0,0.00019713,2]
[376030489,1753830640715,-186.5,0.00019713,2]
[376030491,1753830640725,-460.0,0.00019713,2]
[376030493,1753830640734,-460.0,0.00019713,2]
[376030495,1753830640743,-460.0,0.00019713,2]
[376030497,1753830640752,-484.1,0.00019713,2]
[376030499,1753830640762,-1383.34,0.00019713,2]
[376030501,1753830640772,-460.0,0.00019713,2]
[376030503,1753830640781,-569.04342184,0.00019713,2]
[376030505,1753830640790,-586.86,0.00019713,2]
[376030507,1753830640799,-518.21776314,0.00019714,2]
[376030509,1753830640809,-284.60131649,0.00019714,2]
[376030510,1753830640819,-2890.17,0.00019714,2]
[376030513,1753830640829,-578.5,0.00019714,2]
[376030515,1753830640838,-1401.72,0.00019714,2]
[376030516,1753830640847,-460.0,0.00019714,2]
[376030519,1753830640856,-531.28,0.00019714,2]
[376030521,1753830640866,-528.46,0.00019714,2]
[376030522,1753830640876,-867.43,0.00019714,2]
[376030525,1753830640885,-1182.14,0.00019714,2]
[376030526,1753830640896,-515.85,0.00019714,2]
[376030528,1753830640906,-460.0,0.00019714,2]
[376030531,1753830640916,-460.0,0.00019714,2]
[376030533,1753830640925,-195.74,0.00019715,2]
[376030535,1753830640936,-873.33,0.00019716,2]
[376030536,1753830640945,-953.77,0.00019716,2]
[376030538,1753830640954,-656.79,0.00019718,2]
[376030540,1753830640963,-3792.24,0.00019718,2]
[376030542,1753830640972,-460.0,0.00019718,2]
[376030544,1753830640983,-1554.59,0.00019718,2]
[376030546,1753830640993,-1233.0,0.00019718,2]
[376030548,1753830641011,-460.0,0.00019718,2]
[376030550,1753830641021,-151.0,0.00019746,2]
[376030552,1753830641030,-151.0,0.00019746,2]
[376030554,1753830641039,-25000.0,0.00019746,2]
[376030556,1753830641048,-151.0,0.00019746,2]
[376030558,1753830641058,-1107.80276323,0.00019746,2]
[376030561,1753830641071,-4059.38563251,0.00019746,2]
[376030563,1753830641080,-151.0,0.00019746,2]
[376030565,1753830641090,-151.0,0.00019746,2]
[376030567,1753830641099,-151.0,0.00019746,2]
[376030569,1753830641108,-151.0,0.00019746,2]
[376030571,1753830641118,-151.0,0.00019746,2]
[376030573,1753830641127,-151.0,0.00019746,2]
[376030575,1753830641136,-151.0,0.00019746,2]
[376030577,1753830641146,-151.0,0.00019746,2]
[376030579,1753830641155,-151.0,0.00019746,2]
[376030581,1753830641164,-151.0,0.00019746,2]
[376030582,1753830641174,-151.0,0.00019746,2]
[376030585,1753830641184,-151.0,0.00019746,2]
[376030586,1753830641194,-151.0,0.00019746,2]
[376030588,1753830641205,-50.36436749,0.00019746,2]
[376030633,1753830646005,-460.0,0.0001889,2]
[376030634,1753830646091,-100.63563251,0.00019746,2]
[376030635,1753830646101,-151.0,0.00019746,2]
[376030636,1753830646110,-64.12907881,0.00019746,2]
[376030637,1753830646122,-86.87092119,0.00019746,2]
[376030638,1753830646132,-151.0,0.00019746,2]
[376030639,1753830646141,-151.0,0.00019746,2]
[376030640,1753830646151,-314.89274863,0.00019746,2]
[376030642,1753830683870,500.0,0.00018386,2]